bitfinex-derivatives/quotes_ETHF0:USTF0_20250807
["timestamp","ask_amount","ask_price","bid_price","bid_amount"]
[1754578850784,1.012,3821.9,3821.8,0.5232]
[1754578851897,0.52313,3822.5,3822.3,0.52314]
[1754578852584,1.3076,3823.1,3821.3,1.91988]
[1754578852585,1.012,3822.1,3821.3,1.91988]
[1754578852893,0.4135,3821.8,3821.4,0.20630992]
[1754578853087,0.4135,3821.6,3821.1,1.58337]
[1754578853289,0.7076,3821.6,3821.5,0.52324]
[1754578853487,1.23085,3821.6,3821.4,0.52326]
[1754578853685,1.012,3821.5,3821.4,0.52326]
[1754578855088,1.012,3822.3,3821.1,0.3107]
[1754578855395,1.012,3821.5,3820.9,0.301]
[1754578855694,0.5985,3821.3,3820.9,0.301]
[1754578855888,1.012,3821.1,3821.0,0.52332]
[1754578856089,0.7179,3821.0,3820.5,0.5761]
[1754578856390,0.7179,3820.9,3820.8,0.52334]
[1754578856692,1.012,3820.9,3820.8,0.52334]
[1754578857484,0.5985,3820.9,3820.8,0.83404]
[1754578857690,1.012,3821.2,3821.1,0.83401]
[1754578858188,1.012,3821.2,3821.1,0.52331]
[1754578858394,0.2941,3821.5,3821.4,0.52326]
[1754578858585,0.2941,3821.5,3821.4,1.13496]
[1754578858586,1.012,3821.5,3821.4,1.13496]
[1754578858792,0.3044,3821.2,3821.1,0.52329]
[1754578859094,1.012,3821.2,3821.1,0.52329]
[1754578859290,1.012,3821.1,3821.0,0.52331]
[1754578859491,1.012,3821.0,3820.9,0.52333]
[1754578860297,0.5985,3821.0,3820.9,0.52333]
[1754578860498,1.012,3821.0,3820.9,0.52333]
[1754578860991,1.53533,3820.9,3820.8,0.52335]
[1754578861186,1.012,3820.9,3820.8,0.52335]
[1754578861489,1.30835,3820.9,3820.0,0.3107]
[1754578861693,0.52344,3820.1,3820.0,0.83415]
[1754578861885,0.2941,3819.9,3819.8,0.3107]
[1754578862088,0.52348,3819.8,3819.6,0.52351]
[1754578862285,1.30849,3820.5,3819.1,0.301]
[1754578862591,0.2941,3820.2,3819.3,1.30889]
[1754578862788,1.012,3819.9,3819.7,0.52349]
[1754578862987,1.012,3819.8,3819.7,0.52349]
[1754578863383,1.012,3819.8,3819.7,0.83419]
[1754578863689,1.012,3819.8,3819.7,0.52349]
[1754578864283,1.012,3819.8,3819.7,0.83419]
[1754578864494,1.012,3819.8,3819.7,1.13519]
[1754578864990,1.012,3820.2,3820.1,0.52344]
[1754578866093,1.012,3820.0,3819.9,0.52346]
[1754578866694,1.30852,3820.4,3819.7,0.52349]
[1754578866994,1.012,3820.2,3819.3,1.61958]
[1754578867193,0.7179,3820.0,3819.3,1.61958]
[1754578867394,0.2941,3819.9,3819.3,1.61958]
[1754578867598,1.30852,3820.4,3819.8,0.52347]
[1754578867897,0.52348,3819.9,3819.7,0.52348]
[1754578868396,0.52348,3819.9,3819.7,0.52349]
[1754578868696,1.012,3819.8,3819.7,0.52349]
[1754578869289,1.012,3819.8,3819.7,0.83419]
[1754578869594,0.52344,3820.2,3819.7,0.5761]
[1754578869795,1.012,3820.2,3820.1,0.52343]
[1754578870597,1.012,3820.2,3820.1,1.41023]
[1754578871304,0.5985,3820.2,3820.1,1.41023]
[1754578871697,0.3044,3820.2,3820.1,1.41023]
[1754578871899,1.012,3820.6,3820.1,0.8868]
[1754578872202,0.2941,3820.4,3820.3,0.5234]
[1754578872396,0.3044,3820.3,3820.2,0.52342]
[1754578872599,1.699,3820.3,3820.2,1.21482]
[1754578872904,1.699,3820.3,3820.2,1.80802]
[1754578873094,1.699,3820.3,3820.2,2.08892]
[1754578873296,0.9914,3820.3,3820.2,2.08892]
[1754578873599,0.3044,3820.3,3820.2,2.08892]
[1754578873799,0.7841,3820.3,3820.2,2.08892]
[1754578874000,1.0718,3820.3,3820.2,2.08892]
[1754578874303,1.6812,3820.2,3820.1,0.52343]
[1754578874602,1.6812,3820.2,3820.1,1.81603]
[1754578874799,1.6812,3820.2,3820.1,2.09693]
[1754578875000,1.6812,3820.2,3820.1,1.81603]
[1754578875198,0.3861,3819.8,3819.7,1.21199]
[1754578875400,1.6812,3819.8,3819.7,1.81609]
[1754578876110,1.6812,3819.8,3819.7,1.21599]
[1754578876306,1.2412,3819.8,3819.7,1.81609]
[1754578876605,1.2412,3819.8,3819.7,2.09699]
[1754578876807,1.6812,3819.8,3819.7,2.09699]
[1754578876996,0.52345,3820.1,3820.0,0.72005]
[1754578876997,2.20465,3820.1,3820.0,0.72005]
[1754578877201,2.20465,3820.1,3820.0,1.81605]
[1754578877402,1.1919,3820.4,3820.3,0.6925]
[1754578877606,1.7646,3820.4,3820.3,1.2926]
[1754578877905,2.2046,3820.4,3820.3,1.2926]
[1754578878300,1.6812,3820.4,3820.3,1.2926]
[1754578878500,18.362,3820.8,3820.6,1.81597]
[1754578878807,18.362,3820.8,3820.7,1.5735]
[1754578879204,1.3962,3821.3,3821.2,0.6925]
[1754578879500,1.3962,3821.3,3821.2,1.2926]
[1754578879900,1.2412,3821.3,3821.2,1.5735]
[1754578880404,0.2877,3821.5,3821.2,0.881]
[1754578880613,1.6812,3821.5,3821.4,1.2926]
[1754578881003,0.52323,3821.7,3821.5,0.52325]
[1754578881307,37.678,3821.9,3821.7,0.7108]
[1754578881308,21.24025505,3821.8,3821.7,0.7108]
[1754578881507,21.24025505,3821.8,3821.7,1.0037]
[1754578881508,19.70434505,3821.8,3821.7,1.0037]
[1754578881703,19.0305,3821.8,3821.7,1.5735]
[1754578881904,18.362,3821.8,3821.7,1.5735]
[1754578882813,1.6812,3822.2,3822.1,0.71976]
[1754578883007,1.6812,3822.2,3822.1,1.81576]
[1754578883704,1.6812,3822.2,3822.1,1.2926]
[1754578883906,1.6812,3822.2,3822.1,1.0037]
[1754578885403,1.6812,3822.2,3822.1,1.2926]
[1754578886117,1.6812,3822.2,3822.1,1.0037]
[1754578886412,1.0127,3822.1,3822.0,0.71977]
[1754578886614,1.6812,3822.1,3822.0,1.81577]
[1754578886810,1.6812,3822.1,3822.0,2.09667]
[1754578887013,1.2412,3822.1,3822.0,2.09667]
[1754578887211,18.36,3822.3,3822.2,1.81575]
[1754578887411,2.20426,3822.9,3822.8,0.1966]
[1754578887612,1.6812,3822.6,3822.5,1.81571]
[1754578888003,19.5559,3822.8,3822.7,1.61908]
[1754578888317,0.19731,3823.0,3822.9,1.81566]
[1754578888812,0.19731,3823.0,3822.9,2.09656]
[1754578889314,0.66851,3823.0,3822.9,1.01256]
[1754578889514,0.6685,3822.6,3822.5,0.9814]
[1754578889708,0.44,3822.9,3822.0,1.50458]
[1754578889709,0.6685,3822.1,3822.0,1.50458]
[1754578889903,1.6812,3822.1,3822.0,1.2926]
[1754578890110,1.21,3821.9,3821.8,0.1966]
[1754578890311,1.6812,3821.9,3821.8,0.1966]
[1754578890917,1.6812,3821.6,3821.5,0.7108]
[1754578891215,1.6812,3821.6,3821.5,0.3996]
[1754578891410,18.87817,3822.0,3821.5,0.3996]
[1754578891610,1.6812,3821.6,3821.5,1.096]
[1754578891813,1.6812,3821.9,3821.8,0.6925]
[1754578892012,1.6812,3821.9,3821.8,1.2926]
[1754578892413,0.6685,3821.6,3821.5,0.5078]
[1754578892617,1.6812,3821.6,3821.5,0.5078]
[1754578893508,1.6812,3821.6,3821.5,0.1966]
[1754578894709,1.2412,3821.6,3821.5,1.5735]
[1754578895311,11.2682,3822.1,3822.0,0.6925]
[1754578895512,11.9932,3822.1,3822.0,1.0037]
[1754578895814,0.725,3822.4,3822.3,0.6925]
[1754578896012,0.2877,3822.7,3822.3,0.6925]
[1754578896213,0.6685,3822.7,3822.6,0.6925]
[1754578896413,0.6685,3822.7,3822.6,0.1966]
[1754578896614,0.6685,3822.4,3822.3,0.7108]
[1754578896914,1e-05,3823.0,3822.4,0.5698]
[1754578897215,0.19731,3823.0,3822.9,1.5735]
[1754578897418,1e-05,3823.0,3822.9,0.9734]
[1754578897715,1e-05,3823.0,3822.9,0.6925]
[1754578902019,1e-05,3823.0,3822.9,0.90607277]
[1754578902416,0.9535,3824.5,3824.4,0.1966]
[1754578902617,1.2412,3824.5,3824.4,1.2846]
[1754578902919,1.6812,3824.7,3824.6,1.2722]
[1754578903111,0.9535,3824.7,3824.6,1.5825]
[1754578903314,1.6516,3824.7,3824.6,1.2832]
[1754578903615,1.48433,3824.5,3824.4,0.1875]
[1754578903817,1.6686,3824.5,3824.4,1.2637]
[1754578904421,0.6981,3825.2,3824.4,0.9534]
[1754578904618,0.9935,3825.9,3823.7,0.89]
[1754578904818,1.30652,3826.1,3823.9,0.89]
[1754578905013,0.52269,3825.6,3824.1,1.30718]
[1754578905219,1.6686,3825.5,3825.4,0.673]
[1754578905520,0.8181,3825.4,3824.0,1.30724]
[1754578905716,1.3732,3824.9,3824.8,1.78647]
[1754578905917,0.4899,3824.9,3824.8,1.78647]
[1754578906111,0.7709,3824.9,3824.8,2.08577]
[1754578906314,1.2569,3824.9,3824.8,1.78647]
[1754578906515,1.2569,3824.9,3824.8,2.08577]
[1754578907222,1.2569,3824.9,3824.8,1.563]
[1754578907418,1.6686,3824.9,3824.8,1.2637]
[1754578907619,1.6686,3825.3,3825.2,0.1875]
[1754578907923,1.6686,3824.9,3824.8,0.7791]
[1754578908115,1.6686,3824.9,3824.8,0.1875]
[1754578909517,1.6686,3824.9,3824.8,1.2646]
[1754578910216,1.6686,3824.9,3824.8,1.5639]
[1754578910416,1.3732,3825.2,3825.1,0.673]
[1754578910618,1.6686,3825.2,3825.1,1.2646]
[1754578911717,0.3941,3825.6,3825.5,0.3743]
[1754578911923,1.6686,3825.6,3825.5,1.2646]
[1754578912123,1.6686,3825.6,3825.5,1.5639]
[1754578912332,1.6686,3825.6,3825.5,1.78727]
[1754578912624,1.0,3826.0,3825.2,1.30679]
[1754578912820,1.6895,3826.0,3825.8,0.52262]
[1754578913023,1.6686,3825.9,3825.8,0.3743]
[1754578913219,1.6686,3825.9,3825.8,0.1875]
[1754578913420,1.6686,3825.9,3825.8,1.2646]
[1754578914525,2.6686,3826.0,3825.9,1.5639]
[1754578914727,2.6686,3826.0,3825.0,1.30684]
[1754578914728,1.9705,3826.0,3825.7,0.3112]
[1754578915026,1.6686,3825.8,3825.7,1.78724]
[1754578915414,1.9705,3826.0,3825.9,0.52262]
[1754578915724,2.6686,3826.0,3825.9,1.2646]
[1754578916125,2.6686,3826.0,3825.9,1.5639]
[1754578916422,2.6686,3826.0,3825.9,1.2646]
[1754578916628,2.6686,3826.0,3825.9,1.5639]
[1754578917322,1.0,3826.0,3825.9,1.5639]
[1754578917522,0.6751,3825.7,3825.6,1.47606]
[1754578917722,1.6686,3825.7,3825.6,1.78726]
[1754578917919,1.0,3826.0,3825.1,0.52272]
[1754578917920,0.52267,3825.6,3825.1,0.52272]
[1754578918128,0.6751,3825.2,3825.1,0.89702]
[1754578918424,0.6751,3825.2,3825.1,0.3743]
[1754578918425,1.6686,3825.2,3825.1,0.3743]
[1754578918625,0.6751,3825.2,3824.8,0.2993]
[1754578918930,1.0,3826.0,3823.9,0.26770909]
[1754578918931,0.6751,3824.7,3824.6,1.49509]
[1754578919225,0.6751,3824.7,3824.6,2.08669]
[1754578919433,1.2569,3824.7,3824.6,2.08669]
[1754578919927,0.2954,3825.4,3823.9,0.26770909]
[1754578920124,1.6686,3825.4,3825.3,1.7873]
[1754578920324,1.6686,3825.4,3825.3,0.1875]
[1754578920526,0.6751,3824.6,3824.5,0.673]
[1754578920723,1.6686,3824.6,3824.5,1.78741]
[1754578921030,1.6686,3824.6,3824.5,2.08671]
[1754578921530,1.6686,3824.9,3824.8,1.78737]
[1754578921923,1.6686,3824.9,3824.8,0.89707]
[1754578922123,1.6686,3824.9,3824.5,0.8909]
[1754578922325,1.0868,3824.6,3824.5,2.08671]
[1754578922625,1.6686,3825.3,3825.2,1.78731]
[1754578923028,1.6686,3825.3,3825.2,0.3743]
[1754578923427,1.6686,3825.2,3825.1,1.19573]
[1754578924131,1.6686,3825.2,3825.1,0.3743]
[1754578924335,0.6981,3824.9,3824.8,0.52276]
[1754578924523,1.6686,3824.9,3824.8,1.02146]
[1754578924728,1.6686,3824.9,3824.8,1.78736]
[1754578925232,1.6686,3824.9,3824.8,0.1875]
[1754578925527,1.6686,3824.6,3824.4,0.52282]
[1754578925729,1.6686,3824.5,3824.4,0.1875]
[1754578926028,0.6751,3824.3,3824.2,0.52285]
[1754578926232,1.6686,3824.2,3824.1,0.3112]
[1754578926430,0.9935,3823.9,3823.8,0.5229]
[1754578926730,0.9935,3823.9,3823.8,0.3112]
[1754578926931,0.52283,3824.4,3824.0,0.52287]
[1754578927334,0.52282,3824.5,3824.0,0.52287]
[1754578927630,0.9935,3824.2,3824.0,0.52287]
[1754578927835,0.9935,3824.0,3823.8,0.52291]
[1754578928025,0.9935,3823.9,3823.8,0.52291]
[1754578928423,0.9935,3823.9,3823.8,0.83411]
[1754578928636,0.9935,3823.9,3823.8,1.11451]
[1754578929028,0.4117,3823.5,3823.1,0.3112]
[1754578929228,0.9935,3823.4,3823.3,1.11456]
[1754578929532,0.9935,3823.4,3823.3,1.41386]
[1754578929733,0.2954,3823.4,3823.3,1.41386]
[1754578930030,0.2954,3823.4,3823.3,2.08686]
[1754578930437,0.4755,3823.9,3823.8,1.19589]
[1754578930636,1.1826,3823.9,3823.8,1.78749]
[1754578930936,1.2569,3824.1,3824.0,2.08678]
[1754578931132,0.9705,3824.1,3824.0,2.08678]
[1754578931437,0.68031124,3824.3,3824.2,2.08675]
[1754578931636,1.45121124,3824.3,3824.2,2.08675]
[1754578931936,1.6686,3824.3,3824.2,2.08675]
[1754578932133,0.68031124,3824.4,3824.2,0.52285]
[1754578932335,0.68031124,3824.5,3824.4,1.41372]
[1754578932635,0.9935,3824.7,3824.5,0.52279]
[1754578932836,1.67381124,3824.6,3824.5,0.52279]
[1754578933436,0.9935,3824.6,3824.5,1.40619]
[1754578933637,0.9935,3824.6,3824.5,0.83249]
[1754578934032,0.9935,3824.6,3824.5,1.12389]
[1754578934431,0.9935,3824.6,3824.5,0.83249]
[1754578934734,1.0018,3824.8,3824.7,0.52277]
[1754578935037,2.36541124,3824.8,3824.7,0.52277]
[1754578935530,1.66171124,3824.8,3824.6,0.52279]
[1754578935838,2.36541124,3824.7,3824.6,0.52279]
[1754578936037,1.4854,3824.7,3824.6,0.52279]
[1754578936335,1.2724,3824.7,3824.6,1.81889]
[1754578936531,0.68031124,3825.0,3824.9,1.21775]
[1754578936734,0.88001124,3825.0,3824.9,2.10115]
[1754578936933,0.68031124,3825.0,3824.9,2.10115]
[1754578937135,1.6851,3825.0,3824.9,2.10115]
[1754578938334,1.20297124,3825.6,3825.2,0.5227]
[1754578938640,1.6851,3825.0,3824.9,1.2961]
[1754578938834,1.6851,3825.0,3824.9,1.52744]
[1754578939138,0.5891,3824.9,3824.2,0.6011]
[1754578939340,0.6833,3824.6,3824.5,0.52279]
[1754578939637,1.6851,3824.5,3824.4,0.52281]
[1754578939939,1.6851,3824.5,3824.4,1.51541]
[1754578940128,1.6851,3824.5,3824.4,1.81891]
[1754578940729,1.6851,3824.5,3824.4,2.10121]
[1754578941331,0.6833,3824.9,3824.2,0.2914]
[1754578941534,0.9743,3824.2,3824.1,0.1951]
[1754578941734,1.6851,3824.2,3824.1,0.3915]
[1754578941935,1.2724,3824.2,3824.1,1.5784]
[1754578942137,0.7037,3824.5,3824.1,1.5784]
[1754578942437,0.52276,3824.9,3824.7,1.21778]
[1754578942438,0.9743,3824.8,3824.7,1.21778]
[1754578942736,1.6851,3824.8,3824.7,1.2961]
[1754578942933,1.6851,3824.8,3824.7,0.1951]
[1754578943239,1.6851,3824.8,3824.5,0.52279]
[1754578943240,0.6833,3824.2,3824.1,1.02765]
[1754578943440,1.6851,3824.2,3824.1,1.02765]
[1754578943741,1.6851,3824.2,3824.1,1.22405]
[1754578943945,1.6851,3824.2,3824.1,1.51545]
[1754578944135,1.6851,3824.2,3824.1,0.9926]
[1754578944435,1.6851,3824.2,3824.1,0.7012]
[1754578944639,1.6851,3823.9,3823.8,0.3915]
[1754578944831,1.2724,3823.6,3823.5,1.5784]
[1754578945642,1.6851,3823.6,3823.5,0.3915]
[1754578945842,1.6851,3823.6,3823.5,0.1951]
[1754578946034,1.6851,3823.6,3823.5,0.5048]
[1754578946435,1.6851,3823.6,3823.5,1.0047]
[1754578946641,1.6851,3823.6,3823.5,1.2961]
[1754578947543,2.20804,3823.6,3823.3,0.52297]
[1754578947841,1.6851,3823.4,3823.3,1.52767]
[1754578948036,0.6833,3823.2,3823.1,0.1951]
[1754578948237,2.20809,3823.2,3822.3,1.56502476]
[1754578948436,0.52301,3823.0,3822.4,0.8834]
[1754578948637,0.6833,3822.8,3822.7,0.91455]
[1754578948833,1.6851,3822.8,3822.7,1.22425]
[1754578949543,0.6927,3823.2,3823.1,2.10139]
[1754578951539,0.9814,3823.5,3823.4,2.10136]
[1754578951741,0.7037,3823.8,3823.4,2.10136]
[1754578952047,1.387,3823.6,3823.5,0.1951]
[1754578952448,1.387,3823.6,3823.5,0.7012]
[1754578952650,1.6851,3823.6,3823.5,1.5784]
[1754578953248,1.2724,3823.6,3823.5,1.5784]
[1754578953446,0.4127,3823.9,3823.5,1.58965]
[1754578953749,1.6851,3823.9,3823.8,1.5784]
[1754578953945,0.9814,3823.9,3823.8,2.1013]
[1754578954145,0.6833,3823.6,3823.5,1.52765]
[1754578954344,0.6833,3823.6,3823.4,0.52295]
[1754578954543,0.6833,3823.6,3823.2,0.3097]
[1754578954848,1.6851,3823.3,3823.2,1.22419]
[1754578955346,1.0018,3824.2,3823.5,1.30737]
[1754578955546,1.6851,3823.7,3823.6,1.81903]
[1754578956650,1.6851,3823.7,3823.6,2.10133]
[1754578957644,0.9814,3824.2,3824.1,0.52286]
[1754578957944,1.30707,3824.4,3823.6,0.8834]
[1754578958146,1.6851,3823.7,3823.6,0.91443]
[1754578958345,1.6851,3823.7,3823.6,0.71803]
[1754578959149,1.6851,3823.0,3822.9,0.1951]
[1754578960545,1.6851,3822.9,3822.8,0.52304]
[1754578961850,1.6851,3822.9,3822.7,0.52305]
[1754578962148,1.387,3822.1,3821.5,3.58380291]
[1754578962356,1.387,3821.6,3821.5,1.2961]
[1754578962552,1.6851,3821.6,3821.5,1.0047]
[1754578962848,1.6851,3821.6,3821.5,0.3915]
[1754578963055,0.6833,3821.6,3821.3,0.52324]
[1754578963350,0.6833,3821.6,3821.2,3.27410291]
[1754578963351,1.7139,3821.3,3821.2,3.27410291]
[1754578963547,1.7139,3821.2,3820.8,3.27410291]
[1754578963749,0.6679,3820.9,3820.8,3.79742291]
[1754578963948,1.7139,3820.9,3820.8,0.52332]
[1754578964154,1.7139,3820.9,3820.8,1.18472]
[1754578964448,1.7139,3820.9,3820.8,1.77112]
[1754578965042,1.046,3820.9,3820.8,1.10972]
[1754578965446,1.046,3820.9,3820.8,1.39032]
[1754578966456,0.3028,3820.9,3820.8,1.39032]
[1754578966760,0.7432,3821.5,3821.4,0.52324]
[1754578967056,0.52308,3822.6,3822.1,0.52313]
[1754578967260,0.52309,3822.5,3821.8,0.2755]
[1754578967458,1.046,3821.7,3821.6,0.52321]
[1754578968951,0.7432,3822.5,3821.7,0.52319]
[1754578969166,1.046,3822.1,3821.7,0.52319]
[1754578969459,1.046,3822.2,3821.8,0.52317]
[1754578969663,0.3028,3822.0,3821.7,0.52319]
[1754578969853,1.046,3821.9,3821.8,0.52317]
[1754578971354,2.00155969,3822.7,3821.7,0.52319]
[1754578971355,1.046,3821.8,3821.7,0.52319]
[1754578971661,0.5918,3821.8,3821.5,0.52321]
[1754578971862,0.52315,3822.1,3821.7,0.52319]
[1754578972258,0.52315,3822.1,3821.2,1.30815]
[1754578972259,0.52315,3822.1,3821.8,0.52317]
[1754578972455,1.7139,3821.9,3821.7,0.52319]
[1754578972656,0.6679,3821.5,3821.4,0.52323]
[1754578972857,1.4249,3821.0,3820.9,1.0304]
[1754578973159,1.7139,3821.0,3820.9,1.0304]
[1754578973461,0.9707,3821.0,3820.9,1.7711]
[1754578973659,1.7139,3821.0,3820.9,0.9069]
[1754578973861,1.7139,3820.9,3820.3,0.5864]
[1754578974063,1.7139,3820.4,3820.3,1.77119]
[1754578974660,1.046,3820.4,3820.3,0.52339]
[1754578974963,0.5918,3820.0,3819.9,0.94242071]
[1754578975160,0.5918,3820.0,3818.6,37.9400648]
[1754578975161,1.30861,3819.9,3818.7,1.0797]
[1754578975465,0.5918,3818.8,3818.3,3.72660291]
[1754578975764,1.046,3819.0,3818.1,3.27410291]
[1754578975954,1.046,3819.0,3818.0,0.4525]
[1754578975955,0.52354,3819.2,3818.0,0.4525]
[1754578976266,0.52352,3819.4,3818.7,0.5236]
[1754578976463,0.5235,3819.5,3818.9,0.52357]
[1754578976958,0.289,3819.1,3819.0,0.52356]
[1754578977164,1.046,3819.1,3819.0,0.97606]
[1754578977359,0.3028,3819.1,3819.0,1.25156]
[1754578977766,0.5918,3819.1,3819.0,1.25156]
[1754578978268,1.046,3819.4,3819.3,0.97602]
[1754578978567,1.046,3819.4,3819.3,0.52352]
[1754578978966,1.046,3820.2,3818.4,0.4525]
[1754578979266,0.52346,3819.8,3819.4,0.52351]
[1754578979465,1.046,3819.5,3819.4,0.52351]
[1754578980962,0.3028,3819.5,3819.3,0.52352]
[1754578981166,1.046,3819.4,3819.3,0.52352]
[1754578981367,1.046,3819.4,3819.3,0.97602]
[1754578981867,1.046,3819.4,3819.3,1.25152]
[1754578982463,0.3028,3819.4,3819.3,1.53212]
[1754578982658,0.3028,3819.7,3819.6,0.52348]
[1754578982868,1.046,3819.7,3819.6,0.52348]
[1754578984172,1.046,3819.7,3819.6,1.25148]
[1754578984462,0.5918,3819.7,3819.6,1.53208]
[1754578984671,1.046,3820.0,3819.9,1.25144]
[1754578985168,0.3028,3820.0,3819.9,1.53204]
[1754578985469,1.046,3820.9,3820.8,0.52332]
[1754578985861,1.046,3820.9,3820.8,0.97582]
[1754578986165,0.4542,3821.3,3821.2,0.52326]
[1754578986368,0.4542,3821.3,3821.2,0.97576]
[1754578986369,1.046,3821.3,3821.2,0.97576]
[1754578986663,0.3028,3821.3,3821.2,1.25126]
[1754578986866,0.4542,3821.6,3821.5,0.52322]
[1754578987066,0.5918,3821.6,3821.5,1.25122]
[1754578987264,0.4542,3822.0,3821.9,0.52317]
[1754578987466,0.68906439,3822.5,3820.3,0.21249298]
[1754578987467,0.7432,3822.4,3822.3,0.5231]
[1754578987664,0.7432,3822.4,3822.3,1.2511]
[1754578987868,1.046,3822.4,3822.3,0.9756]
[1754578988371,0.757,3822.8,3822.7,0.52305]
[1754578988561,1.046,3822.8,3822.7,0.4525]
[1754578988960,0.3028,3822.8,3822.7,0.4525]
[1754578989166,0.3028,3822.8,3822.7,1.0086]
[1754578989363,1.0,3823.0,3822.8,0.52305]
[1754578989660,1.0,3823.0,3822.8,0.80365]
[1754578989864,1.4542,3823.0,3822.9,0.2755]
[1754578990172,1.4542,3823.0,3822.9,0.4525]
[1754578990373,2.046,3823.0,3822.9,0.4525]
[1754578990561,2.046,3823.0,3822.9,0.728]
[1754578990967,2.046,3823.0,3822.9,0.4525]
[1754578991767,2.046,3823.0,3822.4,0.2806]
[1754578991768,0.5918,3822.9,3822.4,0.52309]
[1754578991960,0.52304,3822.9,3822.5,0.52308]
[1754578992365,1.046,3822.7,3822.4,0.5231]
[1754578992571,1.046,3822.6,3822.4,0.5231]
[1754578992770,1.046,3822.8,3822.4,0.9756]
[1754578992971,1.0437,3822.7,3822.4,0.9756]
[1754578993161,0.4419,3822.6,3822.4,0.5231]
[1754578993367,0.6018,3822.5,3822.4,0.8176]
[1754578994073,0.6018,3822.5,3822.4,1.2497]
[1754578994464,0.6018,3822.5,3822.4,0.7266]
[1754578994663,1.0437,3822.5,3822.1,0.52314]
[1754578994868,1.0437,3822.4,3822.3,0.52312]
[1754578995076,0.52309,3822.6,3822.3,0.4321]
[1754578995273,1.0,3823.0,3822.1,1.24974]
[1754578995274,0.5231,3822.5,3822.1,1.24974]
[1754578995467,0.6018,3822.6,3822.2,0.52312]
[1754578995662,1.56679,3822.6,3822.2,0.52312]
[1754578995862,1.0437,3822.9,3822.4,0.52309]
[1754578996073,1.0,3823.0,3822.4,0.52309]
[1754578996074,0.7393,3822.6,3822.4,0.52309]
[1754578996269,1.0,3823.0,3822.9,1.54154]
[1754578996461,1.3044,3823.0,3822.9,1.54154]
[1754578996668,1.6018,3823.0,3822.9,1.54154]
[1754578997673,1.3044,3823.0,3822.9,1.54154]
[1754578999064,1.6018,3823.0,3822.9,1.54154]
[1754578999571,1.3044,3823.0,3822.9,1.54154]
[1754578999873,1.6018,3823.0,3822.9,1.24964]
[1754579000281,1.6018,3823.0,3822.9,1.54154]
[1754579000472,2.0437,3823.0,3822.9,0.95514]
[1754579001570,0.3044,3822.8,3822.6,0.52308]
[1754579001775,0.7393,3822.7,3822.6,0.52308]
[1754579001970,1.0437,3822.7,3822.6,0.52308]
[1754579002277,1.7313,3822.7,3822.6,0.52308]
[1754579002476,1.7313,3822.7,3822.6,1.63088]
[1754579002665,1.7313,3822.7,3822.6,1.92538]
[1754579004473,1.0,3823.0,3822.9,2.21724]
[1754579004669,1.3044,3823.0,3822.9,2.21724]
[1754579004865,1.3044,3823.0,3822.9,1.54154]
[1754579005066,1.6018,3823.0,3822.9,1.54154]
[1754579006973,1.0,3823.0,3822.9,1.54154]
[1754579007372,1.0,3823.0,3822.9,2.21724]
[1754579009281,1.4997,3823.0,3822.9,2.21724]
[1754579009479,1.7971,3823.0,3822.9,2.21724]
[1754579009782,1.9894,3823.0,3822.9,2.21724]
[1754579011073,1.0,3823.0,3822.9,1.92534]
[1754579011275,1.0,3823.0,3822.9,2.21724]
[1754579011679,2.2894,3823.0,3822.9,2.21724]
[1754579011882,2.7313,3823.0,3822.9,0.52304]
[1754579012178,1.2894,3822.3,3822.2,0.52312]
[1754579012478,1.7313,3822.3,3822.2,0.52312]
[1754579012778,1.4313,3822.2,3822.0,0.52315]
[1754579013083,1.7313,3822.1,3822.0,0.80065]
[1754579013278,1.7313,3822.1,3822.0,1.63095]
[1754579013472,1.7313,3822.1,3822.0,1.92545]
[1754579014982,1.7313,3822.5,3822.4,0.52309]
[1754579015486,1.7313,3822.4,3822.3,0.52311]
[1754579017078,0.992,3822.4,3822.2,0.52312]
[1754579017285,1.7313,3822.3,3822.2,0.52312]
[1754579017978,1.1295,3822.1,3822.0,0.95525]
[1754579018290,1.7313,3822.1,3822.0,0.80065]
[1754579018583,1.7313,3822.1,3822.0,0.52315]
[1754579018773,1.7313,3822.1,3822.0,0.80065]
[1754579018975,1.7313,3822.1,3822.0,1.92545]
[1754579019176,1.7313,3822.1,3822.0,1.63095]
[1754579019382,1.7313,3822.1,3822.0,1.43415]
[1754579019582,1.0437,3822.0,3821.2,1.74028]
[1754579019775,0.6876,3821.8,3821.3,1.30814]
[1754579019981,0.6876,3821.8,3821.6,0.5232]
[1754579020279,1.7313,3821.7,3821.6,0.7246]
[1754579020477,1.7313,3821.7,3821.6,1.631]
[1754579021476,1.7313,3821.7,3821.6,1.9255]
[1754579022386,1.7313,3821.7,3821.6,1.4342]
[1754579022988,1.7313,3821.7,3821.6,1.631]
[1754579023288,1.7313,3821.7,3821.6,1.9096]
[1754579023788,1.7313,3821.7,3821.6,1.631]
[1754579024187,1.7313,3821.7,3821.6,1.9096]
[1754579024583,1.30762,3822.9,3820.4,2.88110857]
[1754579024584,1.1095,3822.9,3822.7,0.52306]
[1754579024782,0.4663,3822.8,3822.7,1.75456]
[1754579025186,0.9419,3822.8,3822.7,2.20926]
[1754579026885,1.6638,3822.8,3822.7,1.92726]